[Event "USA-ch Seniors 2019"]
[Site "Saint Louis"]
[Date "2019.07.15"]
[Round "5.5"]
[White "Dlugy, Maxim"]
[Black "Novikov, Igor"]
[Result "0-1"]
[ECO "D00"]
[WhiteElo "2518"]
[BlackElo "2556"]
[Annotator "ChessBase"]
[PlyCount "76"]
[EventDate "2019.07.09"]
[EventType "tourn"]
[EventCountry "USA"]
[SourceTitle "playchess.com"]
[Source "ChessBase"]
[SourceQuality "1"]
[TimeControl "40/5400+30:1800+30"]

1. d4 {[%emt 0:00:00]} d5 {[%emt 0:00:00]} 2. Bf4 {[%emt 0:00:00]} Nf6 {[%emt 0:00:06]} 3. e3 {[%emt 0:00:00]} c5 {[%emt 0:00:44]} 4. dxc5 {[%emt 0:00:07]} e6 {[%emt 0:01:26]} 5. b4 {[%emt 0:00:14]} a5 {[%emt 0:01:11]} 6. c3 {[%emt 0:00:04]} Bd7 {[%emt 0:00:45]} 7. Nd2 {[%emt 0:00:09]} axb4 {[%emt 0:01:29]} 8. cxb4 {[%emt 0:00:05]} b6 {[%emt 0:01:12]} 9. cxb6 {[%emt 0:00:04]} Bxb4 {[%emt 0:00:44]} 10. Bc7 {[%emt 0:00:25]} Qe7 {[%emt 0:00:26]} 11. Ngf3 {[%emt 0:08:33]} Ba4 {[%emt 0:07:28]} 12. Qxa4+ {[%emt 0:07:01]} Rxa4 {[%emt 0:00:07]} 13. Bb5+ {[%emt 0:00:02]} Nfd7 {[%emt 0:06:35]} 14. Bxa4 {[%emt 0:00:19]} O-O {[%emt 0:00:44]} 15. Bxd7 {[%emt 0:04:04]} Qxd7 {[%emt 0:07:04]} 16. a4 {[%emt 0:10:34]} Na6 {[%emt 0:06:56]} 17. Ne5 {[%emt 0:01:52]} Qe7 {[%emt 0:09:28]} 18. Nc6 {[%emt 0:00:47]} Qc5 {[%emt 0:06:06]} 19. Nxb4 {[%emt 0:00:26]} Qxb4 {[%emt 0:00:12]} 20. Rb1 {[%emt 0:03:35]} Qa5 {[%emt 0:09:03]} 21. Bd6 {[%emt 0:02:32]} Rd8 {[%emt 0:00:13]} 22. Bg3 {[%emt 0:02:55]} d4 {[%emt 0:04:44]} 23. e4 {[%emt 0:06:58]} e5 {[%emt 0:03:21]} 24. b7 {[%emt 0:05:02]} f6 {[%emt 0:03:48]} 25. f4 {[%emt 0:01:06]} Rb8 {[%emt 0:03:29]} 26. fxe5 {[%emt 0:04:25]} fxe5 {[%emt 0:04:36]} 27. O-O {[%emt 0:00:50]} Qxd2 {[%emt 0:01:08]} 28. Bxe5 {[%emt 0:00:04]} Rf8 {[%emt 0:06:51]} 29. Rfd1 {[%emt 0:10:15]} Qe3+ {[%emt 0:00:31]} 30. Kh1 {[%emt 0:00:01]} d3 {[%emt 0:00:39]} 31. Bd6 {[%emt 0:05:49]} Rf2 {[%emt 0:03:19]} 32. Bg3 {[%emt 0:08:19]} Re2 {[%emt 0:02:29]} 33. b8=Q+ {[%emt 0:03:39]} Nxb8 {[%emt 0:00:04]} 34. Rxb8+ {[%emt 0:00:06]} Kf7 {[%emt 0:00:04]} 35. Rg1 {[%emt 0:11:07]} Qxe4 {[%emt 0:02:38]} 36. a5 {[%emt 0:00:29]} d2 {[%emt 0:02:51]} 37. Rd8 {[%emt 0:00:19]} Ke7 {[%emt 0:00:42]} 38. Rd6 {[%emt 0:00:42]} Qe3 {[%emt 0:00:32]} 0-1

[Event "USA-ch Seniors 2019"]
[Site "Saint Louis"]
[Date "2019.07.17"]
[Round "6.2"]
[White "Benjamin, Joel"]
[Black "Dlugy, Maxim"]
[Result "1-0"]
[ECO "B22"]
[WhiteElo "2524"]
[BlackElo "2518"]
[Annotator "ChessBase"]
[PlyCount "79"]
[EventDate "2019.07.09"]
[EventType "tourn"]
[EventCountry "USA"]
[SourceTitle "playchess.com"]
[Source "ChessBase"]
[SourceQuality "1"]
[TimeControl "40/5400+30:1800+30"]

1. e4 {[%emt 0:00:00]} c5 {[%emt 0:00:00]} 2. c3 {[%emt 0:00:00]} d5 {[%emt 0:00:11]} 3. exd5 {[%emt 0:00:00]} Qxd5 {[%emt 0:00:04]} 4. Nf3 {[%emt 0:00:13]} g6 {[%emt 0:01:13]} 5. Na3 {[%emt 0:04:59]} Bg7 {[%emt 0:01:32]} 6. d4 {[%emt 0:06:24]} cxd4 {[%emt 0:00:37]} 7. Nb5 {[%emt 0:09:58]} Na6 {[%emt 0:00:32]} 8. Nbxd4 {[%emt 0:01:16]} Nf6 {[%emt 0:01:58]} 9. Bb5+ {[%emt 0:01:32]} Bd7 {[%emt 0:01:40]} 10. Bxd7+ {[%emt 0:02:47]} Nxd7 {[%emt 0:01:16]} 11. O-O {[%emt 0:00:17]} O-O {[%emt 0:13:01]} 12. Bg5 {[%emt 0:12:24]} e5 {[%emt 0:04:05]} 13. Nf5 {[%emt 0:01:36]} Qxd1 {[%emt 0:00:15]} 14. Raxd1 {[%emt 0:04:25]} gxf5 {[%emt 0:07:00]} 15. Rxd7 {[%emt 0:00:06]} f6 {[%emt 0:08:29]} 16. Bc1 {[%emt 0:02:13]} Rf7 {[%emt 0:03:10]} 17. Rdd1 {[%emt 0:10:46]} f4 {[%emt 0:03:34]} 18. g3 {[%emt 0:05:39]} fxg3 {[%emt 0:02:51]} 19. fxg3 {[%emt 0:00:08]} Rff8 {[%emt 0:07:12]} 20. Be3 {[%emt 0:03:21]} Nb8 {[%emt 0:03:50]} 21. Nh4 {[%emt 0:01:55]} Nc6 {[%emt 0:00:09]} 22. Rd7 {[%emt 0:00:48]} Rf7 {[%emt 0:05:05]} 23. Rfd1 {[%emt 0:01:20]} Re8 {[%emt 0:00:17]} 24. Nf5 {[%emt 0:05:38]} Bf8 {[%emt 0:00:04]} 25. g4 {[%emt 0:01:11]} b6 {[%emt 0:07:03]} 26. h3 {[%emt 0:07:38]} Re6 {[%emt 0:04:43]} 27. Rxf7 {[%emt 0:01:50]} Kxf7 {[%emt 0:00:04]} 28. Rd7+ {[%emt 0:00:10]} Be7 {[%emt 0:00:21]} 29. Rc7 {[%emt 0:00:58]} e4 {[%emt 0:04:20]} 30. Kf1 {[%emt 0:02:01]} Kf8 {[%emt 0:03:02]} 31. Ke2 {[%emt 0:02:10]} Bd8 {[%emt 0:02:44]} 32. Rxh7 {[%emt 0:01:10]} Kg8 {[%emt 0:00:39]} 33. Rg7+ {[%emt 0:02:09]} Kh8 {[%emt 0:00:04]} 34. Rd7 {[%emt 0:00:35]} Be7 {[%emt 0:00:06]} 35. Nd4 {[%emt 0:01:50]} Nxd4+ {[%emt 0:00:08]} 36. Bxd4 {[%emt 0:00:03]} Bc5 {[%emt 0:00:15]} 37. Rxa7 {[%emt 0:00:58]} Bxd4 {[%emt 0:00:10]} 38. cxd4 {[%emt 0:00:04]} Rc6 {[%emt 0:00:14]} 39. Ke3 {[%emt 0:00:54]} Rc2 {[%emt 0:00:05]} 40. d5 {[%emt 0:00:00]} 1-0

[Event "USA-ch Seniors 2019"]
[Site "Saint Louis"]
[Date "2019.07.17"]
[Round "6.3"]
[White "Christiansen, Larry"]
[Black "Kaidanov, Gregory"]
[Result "0-1"]
[ECO "A06"]
[WhiteElo "2574"]
[BlackElo "2544"]
[Annotator "ChessBase"]
[PlyCount "94"]
[EventDate "2019.07.09"]
[EventType "tourn"]
[EventCountry "USA"]
[SourceTitle "playchess.com"]
[Source "ChessBase"]
[SourceQuality "1"]
[TimeControl "40/5400+30:1800+30"]

1. Nf3 {[%emt 0:00:00]} d5 {[%emt 0:00:00]} 2. g3 {[%emt 0:00:00]} Nf6 {[%emt 0:02:53]} 3. Bg2 {[%emt 0:00:18]} c5 {[%emt 0:00:54]} 4. O-O {[%emt 0:01:35]} e6 {[%emt 0:01:20]} 5. c4 {[%emt 0:01:11]} d4 {[%emt 0:00:23]} 6. d3 {[%emt 0:03:10]} Nc6 {[%emt 0:00:20]} 7. e3 {[%emt 0:00:34]} Bd6 {[%emt 0:07:17]} 8. exd4 {[%emt 0:03:46]} cxd4 {[%emt 0:00:10]} 9. a3 {[%emt 0:02:14]} a5 {[%emt 0:00:38]} 10. Bg5 {[%emt 0:02:44]} h6 {[%emt 0:01:37]} 11. Bxf6 {[%emt 0:00:23]} Qxf6 {[%emt 0:00:06]} 12. Nbd2 {[%emt 0:00:29]} Qd8 {[%emt 0:03:37]} 13. Rc1 {[%emt 0:08:09]} O-O {[%emt 0:02:21]} 14. c5 {[%emt 0:03:13]} Bc7 {[%emt 0:02:36]} 15. Nc4 {[%emt 0:11:34]} Qe7 {[%emt 0:05:10]} 16. Re1 {[%emt 0:14:14]} Qxc5 {[%emt 0:22:31]} 17. Nce5 {[%emt 0:15:07]} Qb6 {[%emt 0:02:50]} 18. Nxc6 {[%emt 0:00:59]} bxc6 {[%emt 0:00:04]} 19. Re2 {[%emt 0:01:29]} Bd7 {[%emt 0:06:24]} 20. Qa4 {[%emt 0:01:33]} e5 {[%emt 0:09:56]} 21. Nh4 {[%emt 0:07:29]} Rac8 {[%emt 0:00:45]} 22. Be4 {[%emt 0:01:48]} g6 {[%emt 0:02:47]} 23. Rec2 {[%emt 0:02:38]} Bd6 {[%emt 0:01:05]} 24. Bxc6 {[%emt 0:04:49]} Be6 {[%emt 0:00:37]} 25. Bb5 {[%emt 0:03:40]} Kg7 {[%emt 0:04:04]} 26. Rc6 {[%emt 0:02:12]} Rxc6 {[%emt 0:01:05]} 27. Rxc6 {[%emt 0:00:05]} Qd8 {[%emt 0:01:54]} 28. Rc1 {[%emt 0:01:18]} Qb6 {[%emt 0:02:58]} 29. Rc6 {[%emt 0:00:15]} Qd8 {[%emt 0:00:10]} 30. Rc1 {[%emt 0:00:09]} Bd5 {[%emt 0:02:48]} 31. Bc6 {[%emt 0:00:41]} Qc7 {[%emt 0:01:49]} 32. Rc2 {[%emt 0:03:24]} Rc8 {[%emt 0:02:08]} 33. Bxd5 {[%emt 0:00:05]} Qxc2 {[%emt 0:00:14]} 34. Qd7 {[%emt 0:00:04]} Qc7 {[%emt 0:01:14]} 35. Qg4 {[%emt 0:00:08]} Rb8 {[%emt 0:04:02]} 36. Be4 {[%emt 0:00:41]} Qc1+ {[%emt 0:02:01]} 37. Kg2 {[%emt 0:00:04]} Qg5 {[%emt 0:00:05]} 38. Qd7 {[%emt 0:00:09]} Qe7 {[%emt 0:00:12]} 39. Qg4 {[%emt 0:00:43]} Qe6 {[%emt 0:01:27]} 40. Qxe6 {[%emt 0:00:00]} fxe6 {[%emt 0:00:00]} 41. b4 {[%emt 0:01:20]} Bxb4 {[%emt 0:02:55]} 42. a4 {[%emt 0:00:58]} g5 {[%emt 0:02:05]} 43. Nf3 {[%emt 0:00:05]} Kf6 {[%emt 0:00:11]} 44. h4 {[%emt 0:00:29]} gxh4 {[%emt 0:02:38]} 45. Nxh4 {[%emt 0:00:19]} Bc3 {[%emt 0:00:47]} 46. Nf3 {[%emt 0:00:15]} Rb4 {[%emt 0:00:29]} 47. Bc6 {[%emt 0:00:08]} e4 {[%emt 0:00:48]} 0-1

[Event "USA-ch Seniors 2019"]
[Site "Saint Louis"]
[Date "2019.07.17"]
[Round "6.5"]
[White "Yermolinsky, Alex"]
[Black "Fishbein, Alexander"]
[Result "1-0"]
[ECO "E94"]
[WhiteElo "2504"]
[BlackElo "2432"]
[Annotator "RC"]
[PlyCount "193"]
[EventDate "2019.07.09"]
[EventType "tourn"]
[EventCountry "USA"]
[SourceTitle "playchess.com"]
[Source "ChessBase"]
[SourceQuality "1"]
[TimeControl "40/5400+30:1800+30"]

1. d4 {[%emt 0:00:08]} Nf6 {[%emt 0:00:00]} 2. c4 {[%emt 0:00:04]} g6 {[%emt 0:00:00]} 3. Nc3 {[%emt 0:00:09]} Bg7 {[%emt 0:00:00]} 4. e4 {[%emt 0:00:09]} d6 {[%emt 0:00:00]} 5. Be2 {[%emt 0:00:33]} O-O {[%emt 0:00:02]} 6. Nf3 {[%emt 0:00:15]} e5 {[%emt 0:00:07]} 7. O-O {[%emt 0:00:07]} c6 {[%emt 0:00:09]} 8. d5 {[%emt 0:01:02]} Na6 {[%emt 0:00:06]} 9. Re1 {[%emt 0:00:07]} Nc5 {[%emt 0:00:35]} 10. Qc2 {[%emt 0:00:16]} cxd5 {[%emt 0:00:18]} 11. cxd5 {[%emt 0:00:07]} Qc7 {[%emt 0:00:19]} 12. Nd2 {[%emt 0:01:59]} Bd7 {[%emt 0:00:34]} 13. a4 {[%emt 0:02:58]} Bh6 {[%emt 0:05:23]} 14. Bb5 {[%emt 0:06:45]} Rac8 {[%emt 0:08:23]} 15. Ra3 {[%emt 0:05:42]} Nh5 {[%emt 0:13:59]} 16. b4 {[%emt 0:12:51]} Na6 {[%emt 0:00:48]} 17. Qb1 {[%emt 0:01:06]} f5 {[%emt 0:12:53]} 18. Bf1 {[%emt 0:02:15]} fxe4 {[%emt 0:06:11]} 19. Ndxe4 {[%emt 0:17:44]} Bxc1 {[%emt 0:00:41]} 20. Rxc1 {[%emt 0:00:19]} Bf5 {[%emt 0:00:59]} 21. Rd1 {[%emt 0:06:58]} Qe7 {[%emt 0:13:31]} 22. Qb2 {[%emt 0:02:38]} Rc7 {[%emt 0:03:19]} 23. Rb3 {[%emt 0:06:00]} Rfc8 {[%emt 0:02:19]} 24. Qd2 {[%emt 0:00:33]} Nb8 {[%emt 0:02:48]} 25. Qe3 {[%emt 0:02:02]} a6 {[%emt 0:01:06]} 26. b5 {[%emt 0:01:04]} Nf6 {[%emt 0:03:11]} 27. bxa6 {[%emt 0:12:08]} Nxa6 {[%emt 0:06:15]} 28. Rxb7 {[%emt 0:02:16]} Nxe4 {[%emt 0:03:37]} 29. Rxc7 {[%emt 0:01:58]} Rxc7 {[%emt 0:03:09]} 30. Nxe4 {[%emt 0:00:08]} Nb4 {[%emt 0:00:42]} 31. Nc3 {[%emt 0:04:53]} Rc5 {[%emt 0:02:36]} 32. Qd2 {[%emt 0:02:37]} Kg7 {[%emt 0:01:52]} 33. Qb2 {[%emt 0:01:17]} Nc2 {[%emt 0:03:24]} 34. Nb5 {[%emt 0:00:14]} Bd7 {[%emt 0:02:51]} 35. Rc1 {[%emt 0:03:16]} Nb4 {[%emt 0:01:20]} 36. Rxc5 {[%emt 0:01:20]} dxc5 {[%emt 0:00:01]} 37. f4 {[%emt 0:00:40]} Nxd5 {[%emt 0:00:26]} 38. Qxe5+ {[%emt 0:00:33]} Qxe5 {[%emt 0:00:05]} 39. fxe5 {[%emt 0:00:05]} Ne3 {[%emt 0:03:31]} 40. Be2 {[%emt 0:00:00]} Bc6 {[%emt 0:00:00]} 41. a5 {[%emt 0:05:41]} Nxg2 {[%emt 0:06:15]} 42. a6 {[%emt 0:01:33]} Nf4 {[%emt 0:00:34]} 43. Bc4 {[%emt 0:00:17]} Kf8 {[%emt 0:15:13]} 44. a7 {[%emt 0:08:59]} Ke7 {[%emt 0:00:19]} 45. Nc7 {[%emt 0:01:40]} g5 {[%emt 0:04:27]} 46. Kf2 {[%emt 0:01:20]} Bb7 {[%emt 0:01:32]} 47. Kg3 {[%emt 0:07:28]} Kd7 {[%emt 0:00:51]} 48. a8=Q {[%emt 0:03:09]} Bxa8 {[%emt 0:00:01]} 49. Nxa8 {[%emt 0:00:09]} Ng6 {[%emt 0:01:11]} 50. e6+ {[%emt 0:00:14]} Kc6 {[%emt 0:01:38]} 51. Bd3 {[%emt 0:01:26]} Nf4 {[%emt 0:03:50]} 52. Be4+ {[%emt 0:02:18]} Kd6 {[%emt 0:00:12]} 53. Bxh7 {[%emt 0:00:46]} Kxe6 {[%emt 0:00:49]} 54. Nb6 {[%emt 0:00:50]} Nh5+ {[%emt 0:00:17]} 55. Kf2 {[%emt 0:00:15]} Nf6 56. Bb1 {[%emt 0:02:19]} Ke5 {[%emt 0:00:26]} 57. Kf3 {[%emt 0:00:20]} Kd4 {[%emt 0:01:06]} 58. Ba2 {[%emt 0:00:15]} Ke5 {[%emt 0:01:08]} 59. Nc4+ {[%emt 0:00:18]} Kf5 {[%emt 0:00:31]} 60. Nd6+ {[%emt 0:00:49]} Kg6 {[%emt 0:00:10]} 61. Be6 {[%emt 0:01:07]} Kg7 {[%emt 0:00:50]} 62. Nb7 {[%emt 0:00:23]} Kg6 {[%emt 0:00:10]} 63. Nxc5 {[%emt 0:00:06]} Kh6 {[%emt 0:00:25]} 64. Bg4 {[%emt 0:00:50]} Kg6 {[%emt 0:00:15]} 65. h3 {[%emt 0:00:41]} Nd5 {[%emt 0:00:32]} 66. Ke4 {[%emt 0:00:13]} Ne7 {[%emt 0:00:54]} 67. Ke5 {[%emt 0:01:05]} Nc6+ {[%emt 0:00:13]} 68. Kd6 {[%emt 0:00:15]} Nd4 {[%emt 0:00:15]} 69. Kd5 {[%emt 0:00:10]} Nc2 {[%emt 0:00:39]} 70. Ke5 {[%emt 0:00:31]} Ne3 {[%emt 0:00:31]} 71. Nd3 {[%emt 0:00:51]} Nc4+ {[%emt 0:00:25]} 72. Ke6 {[%emt 0:00:08]} Ne3 {[%emt 0:01:07]} 73. Ne5+ {[%emt 0:00:10]} Kh6 {[%emt 0:00:44]} 74. Kf6 {[%emt 0:01:00]} Nd5+ {[%emt 0:00:13]} 75. Kf7 {[%emt 0:00:07]} Nf4 {[%emt 0:00:43]} 76. Nc6 {[%emt 0:00:53]} Ng6 {[%emt 0:00:38]} 77. Kf6 {[%emt 0:00:39]} Nf4 {[%emt 0:00:27]} 78. Ne7 {[%emt 0:00:38]} Nh5+ {[%emt 0:00:45]} 79. Kf7 {[%emt 0:00:21]} Nf4 {[%emt 0:00:34]} 80. Nf5+ {[%emt 0:00:10]} Kh7 {[%emt 0:00:04]} 81. Kf6 {[%emt 0:00:11]} Nd3 {[%emt 0:00:14]} 82. Kxg5 {[%emt 0:00:14]} Kh8 {[%emt 0:00:17]} 83. Nd6 {[%emt 0:00:37]} Kg7 {[%emt 0:00:37]} 84. Kf5 {[%emt 0:00:23]} Nc5 {[%emt 0:00:14]} 85. Kg5 {[%emt 0:00:21]} Nd3 {[%emt 0:00:15]} 86. Kf5 {[%emt 0:00:08]} Nc5 {[%emt 0:00:03]} 87. h4 {[%emt 0:00:14]} Nd3 {[%emt 0:00:13]} 88. Be2 {[%emt 0:00:40]} Nb4 {[%emt 0:00:13]} 89. Kg5 {[%emt 0:00:20]} Nc6 {[%emt 0:00:11]} 90. h5 {[%emt 0:01:34]} Ne5 {[%emt 0:01:12]} 91. h6+ {[%emt 0:00:07]} Kh7 {[%emt 0:00:46]} 92. Bh5 {[%emt 0:00:24]} Kh8 {[%emt 0:00:33]} 93. Bg6 {[%emt 0:00:23]} Kg8 {[%emt 0:00:24]} 94. Kf5 {[%emt 0:00:46]} Nc6 {[%emt 0:01:19]} 95. Kf6 {[%emt 0:01:11]} Nd8 {[%emt 0:00:10]} 96. Be4 {[%emt 0:00:17]} Kh8 {[%emt 0:00:22]} 97. Ke7 {[%emt 0:00:22]} 1-0

[Event "USA-ch Seniors 2019"]
[Site "Saint Louis"]
[Date "2019.07.19"]
[Round "8.5"]
[White "Fishbein, Alexander"]
[Black "Shabalov, Alexander"]
[Result "0-1"]
[ECO "B18"]
[WhiteElo "2432"]
[BlackElo "2500"]
[Annotator "RC"]
[PlyCount "116"]
[EventDate "2019.07.09"]
[EventType "tourn"]
[EventCountry "USA"]
[SourceTitle "playchess.com"]
[Source "ChessBase"]
[SourceQuality "1"]
[TimeControl "40/5400+30:1800+30"]

1. e4 {[%emt 0:00:00]} c6 {[%emt 0:00:04]} 2. d4 {[%emt 0:00:28]} d5 {[%emt 0:00:06]} 3. Nc3 {[%emt 0:00:03]} dxe4 {[%emt 0:00:20]} 4. Nxe4 {[%emt 0:00:04]} Bf5 {[%emt 0:00:08]} 5. Nc5 {[%emt 0:00:19]} e5 {[%emt 0:03:06]} 6. Nxb7 {[%emt 0:00:15]} Qc7 {[%emt 0:00:05]} 7. Nc5 {[%emt 0:01:52]} Nf6 {[%emt 0:00:05]} 8. Nb3 {[%emt 0:15:51]} Nbd7 {[%emt 0:06:18]} 9. g3 {[%emt 0:08:36]} a5 {[%emt 0:21:30]} 10. Bg2 {[%emt 0:03:17]} a4 {[%emt 0:02:29]} 11. Nd2 {[%emt 0:00:36]} exd4 {[%emt 0:00:37]} 12. Ngf3 {[%emt 0:06:11]} Bc5 {[%emt 0:05:53]} 13. Qe2+ {[%emt 0:03:01]} Kd8 {[%emt 0:03:53]} 14. O-O {[%emt 0:00:42]} Re8 {[%emt 0:05:25]} 15. Qc4 {[%emt 0:10:50]} Qd6 {[%emt 0:07:50]} 16. b4 {[%emt 0:05:26]} Bb6 {[%emt 0:22:23]} 17. b5 {[%emt 0:02:37]} Rc8 {[%emt 0:08:01]} 18. Qxa4 {[%emt 0:05:51]} cxb5 {[%emt 0:00:45]} 19. Qxb5 {[%emt 0:00:25]} Bxc2 {[%emt 0:00:21]} 20. Nb3 {[%emt 0:05:40]} d3 {[%emt 0:00:45]} 21. Ng5 {[%emt 0:01:11]} Re7 {[%emt 0:02:23]} 22. a4 {[%emt 0:04:01]} Qe5 {[%emt 0:02:40]} 23. Qxe5 {[%emt 0:04:56]} Nxe5 {[%emt 0:00:04]} 24. a5 {[%emt 0:00:29]} Ba7 {[%emt 0:00:38]} 25. Nd2 {[%emt 0:00:16]} Neg4 {[%emt 0:00:56]} 26. Nge4 {[%emt 0:06:38]} Bd4 {[%emt 0:01:12]} 27. Ra2 {[%emt 0:01:14]} Nxe4 {[%emt 0:00:36]} 28. Bxe4 {[%emt 0:00:21]} Nxf2 {[%emt 0:01:23]} 29. Rxf2 {[%emt 0:00:22]} Bb1 {[%emt 0:00:53]} 30. Ra4 {[%emt 0:07:06]} Rxc1+ {[%emt 0:00:27]} 31. Kg2 {[%emt 0:00:00]} Bxf2 {[%emt 0:00:10]} 32. Kxf2 {[%emt 0:00:03]} Rc2 {[%emt 0:01:03]} 33. Ke3 {[%emt 0:00:27]} f5 {[%emt 0:00:28]} 34. a6 {[%emt 0:00:47]} Ra2 {[%emt 0:01:28]} 35. Rd4+ {[%emt 0:03:09]} Ke8 {[%emt 0:00:55]} 36. Nxb1 {[%emt 0:00:40]} Re2+ {[%emt 0:01:17]} 37. Kxd3 {[%emt 0:00:24]} R2xe4 {[%emt 0:00:06]} 38. Rd5 {[%emt 0:02:32]} Ra4 {[%emt 0:00:55]} 39. Rxf5 {[%emt 0:00:22]} Rxa6 {[%emt 0:00:09]} 40. Nc3 {[%emt 0:00:00]} Rd6+ {[%emt 0:00:00]} 41. Rd5 {[%emt 0:01:20]} Rh6 {[%emt 0:03:28]} 42. h4 {[%emt 0:00:39]} Rhe6 {[%emt 0:02:58]} 43. Kd2 {[%emt 0:02:45]} Kf7 {[%emt 0:00:44]} 44. Rd4 {[%emt 0:00:57]} Re5 {[%emt 0:00:36]} 45. Rd3 {[%emt 0:01:33]} Rb7 {[%emt 0:00:42]} 46. Nd1 {[%emt 0:00:53]} Ke6 {[%emt 0:00:21]} 47. Ne3 {[%emt 0:02:12]} Rb2+ {[%emt 0:01:36]} 48. Kc3 {[%emt 0:00:11]} Reb5 {[%emt 0:01:25]} 49. Rd1 {[%emt 0:02:47]} R2b3+ {[%emt 0:04:06]} 50. Kd2 {[%emt 0:02:21]} Ra5 {[%emt 0:01:47]} 51. Ke2 {[%emt 0:01:40]} Raa3 {[%emt 0:00:31]} 52. Nf1 {[%emt 0:01:16]} Rb2+ {[%emt 0:01:00]} 53. Ke1 {[%emt 0:00:19]} Kf5 {[%emt 0:00:53]} 54. Rc1 {[%emt 0:03:25]} Kg4 {[%emt 0:00:27]} 55. Kd1 {[%emt 0:00:53]} Kh3 {[%emt 0:00:29]} 56. Ke1 {[%emt 0:00:07]} Rf3 {[%emt 0:03:09]} 57. Nd2 {[%emt 0:01:15]} Re3+ {[%emt 0:00:34]} 58. Kf2 {[%emt 0:00:11]} Rd3 {[%emt 0:00:14]} 0-1